fUSD/lending_fUSD_20241209
["ID","MTS","AMOUNT","RATE_DAILY","PERIOD"]
[344710957,1733733031673,-150.0,9.798e-05,2]
[344710958,1733733031682,-78610.16774623,9.799e-05,2]
[344710985,1733733037431,-8048.96463274,9.799e-05,2]
[344710986,1733733037443,-4668.76971889,9.799e-05,2]
[344710987,1733733037548,-34470.0,9.799e-05,2]
[344710988,1733733037769,-1239.99999,9.799e-05,2]
[344711070,1733733039538,-37909.15986935,9.799e-05,2]
[344711071,1733733039649,-625.42636932,9.799e-05,2]
[344711072,1733733041118,-610.10639981,9.799e-05,2]
[344711073,1733733041130,-2038.00408906,9.799e-05,2]
[344711074,1733733041141,-1371.14500003,9.799e-05,2]
[344711116,1733733042497,-746.08136123,9.799e-05,2]
[344711117,1733733042508,-13494.2466,9.799e-05,2]
[344711118,1733733042558,-9968.1,9.799e-05,2]
[344711119,1733733042779,-500.0,9.799e-05,2]
[344711120,1733733042790,-8839.27768347,9.799e-05,2]
[344711121,1733733042890,-460.96841239,9.799e-05,2]
[344711122,1733733042900,-299.03442058,9.799e-05,2]
[344711123,1733733042909,-192.41256365,9.799e-05,2]
[344711124,1733733042918,-299.03442057,9.8e-05,2]
[344711125,1733733042927,-1116966.08883481,9.8e-05,2]
[344711126,1733733042938,-7629.75700085,9.8e-05,2]
[344711127,1733733042949,-46844.60472337,9.8e-05,2]
[344711128,1733733042959,-37812.72229236,9.8e-05,2]
[344711129,1733733042968,-7787.27770764,9.8e-05,2]
[344711130,1733733042979,-14769.68362846,9.8e-05,2]
[344711131,1733733042989,-299.03442057,9.8e-05,2]
[344711132,1733733042999,-19261.13270458,9.8e-05,2]
[344711133,1733733043008,-205.0,9.8e-05,2]
[344711135,1733733043018,-500.0,9.863e-05,2]
[344711136,1733733043027,-634.95,9.863e-05,2]
[344711137,1733733043036,-529.71,9.863e-05,2]
[344711138,1733733043045,-640.32,9.863e-05,2]
[344711139,1733733043054,-500.0,9.863e-05,2]
[344711140,1733733043064,-439.39,9.863e-05,2]
[344711141,1733733043073,-500.0,9.863e-05,2]
[344711142,1733733043086,-500.0,9.863e-05,2]
[344711143,1733733043095,-407.24,9.863e-05,2]
[344711144,1733733043105,-558.56,9.863e-05,2]
[344711145,1733733043114,-558.56,9.863e-05,2]
[344711146,1733733043124,-558.56,9.863e-05,2]
[344711147,1733733043133,-558.56,9.863e-05,2]
[344711148,1733733043141,-558.56,9.863e-05,2]
[344711149,1733733043151,-558.56,9.863e-05,2]
[344711150,1733733043160,-500.0,9.863e-05,2]
[344711151,1733733043169,-390.6,9.863e-05,2]
[344711152,1733733043179,-500.0,9.863e-05,2]
[344711153,1733733043188,-500.0,9.863e-05,2]
[344711154,1733733043197,-500.0,9.863e-05,2]
[344711155,1733733043206,-664.48,9.863e-05,2]
[344711156,1733733043216,-500.0,9.863e-05,2]
[344711157,1733733043225,-664.48,9.863e-05,2]
[344711158,1733733043235,-341.49,9.863e-05,2]
[344711159,1733733043245,-664.48,9.863e-05,2]
[344711160,1733733043254,-664.48,9.863e-05,2]
[344711161,1733733043263,-664.48,9.863e-05,2]
[344711162,1733733043273,-664.48,9.863e-05,2]
[344711163,1733733043282,-500.0,9.863e-05,2]
[344711164,1733733043291,-500.0,9.863e-05,2]
[344711165,1733733043300,-500.0,9.863e-05,2]
[344711166,1733733043310,-500.0,9.863e-05,2]
[344711167,1733733043319,-500.0,9.863e-05,2]
[344711168,1733733043330,-500.0,9.863e-05,2]
[344711169,1733733043340,-813.55,9.863e-05,2]
[344711170,1733733043349,-813.55,9.863e-05,2]
[344711171,1733733043358,-813.55,9.863e-05,2]
[344711172,1733733043368,-813.55,9.863e-05,2]
[344711173,1733733043377,-813.55,9.863e-05,2]
[344711174,1733733043387,-813.55,9.863e-05,2]
[344711175,1733733043397,-500.0,9.863e-05,2]
[344711176,1733733043407,-500.0,9.863e-05,2]
[344711177,1733733043416,-500.0,9.863e-05,2]
[344711178,1733733043425,-500.0,9.863e-05,2]
[344711179,1733733043435,-500.0,9.863e-05,2]
[344711180,1733733043444,-500.0,9.863e-05,2]
[344711181,1733733043454,-500.0,9.863e-05,2]
[344711182,1733733043463,-844.45,9.863e-05,2]
[344711183,1733733043473,-844.45,9.863e-05,2]
[344711184,1733733043483,-844.45,9.863e-05,2]
[344711185,1733733043492,-844.45,9.863e-05,2]
[344711186,1733733043501,-844.45,9.863e-05,2]
[344711187,1733733043511,-844.45,9.863e-05,2]
[344711188,1733733043521,-500.0,9.863e-05,2]
[344711189,1733733043536,-500.0,9.863e-05,2]
[344711190,1733733043555,-543.44,9.863e-05,2]
[344711191,1733733043571,-500.0,9.863e-05,2]
[344711192,1733733043585,-500.0,9.863e-05,2]
[344711193,1733733043594,-500.0,9.863e-05,2]
[344711194,1733733043605,-298.8,9.863e-05,2]
[344711195,1733733043614,-1536.51,9.896e-05,2]
[344711196,1733733043623,-768.36,9.896e-05,2]
[344711197,1733733043633,-756.9,9.896e-05,2]
[344711198,1733733043642,-558.56,9.898e-05,2]
[344711199,1733733043652,-558.56,9.898e-05,2]
[344711200,1733733043661,-664.48,9.898e-05,2]
[344711201,1733733043670,-664.48,9.898e-05,2]
[344711202,1733733043679,-500.0,9.898e-05,2]
[344711203,1733733043689,-500.0,9.898e-05,2]
[344711204,1733733043698,-813.55,9.898e-05,2]
[344711205,1733733043708,-813.55,9.898e-05,2]
[344711206,1733733043719,-647.18530442,9.898e-05,2]
[344711207,1733733043728,-839.50660918,9.898e-05,2]
[344711238,1733733045464,-4.94339082,9.898e-05,2]
[344711240,1733733045474,-844.45,9.898e-05,2]
[344711242,1733733045483,-1154.59423173,9.899e-05,2]
[344711259,1733733045646,-7983.0,9.899e-05,2]
[344711261,1733733045658,-170028.1653033,9.899e-05,2]
[344711264,1733733045669,-3829.86698013,9.899e-05,2]
[344711266,1733733045688,-50960.000025,9.899e-05,2]
[344711269,1733733045699,-603.87499755,9.899e-05,2]
[344711271,1733733045711,-51750.0000045,9.899e-05,2]
[344711273,1733733045727,-259.13,9.899e-05,2]
[344711276,1733733045746,-5393.71610867,9.899e-05,2]
[344715782,1733733802995,50.57789782,0.000162,45]
[344715783,1733733817761,233.0,0.0001731,90]
[344715785,1733733839833,182.42210218,0.000165,60]
[344715801,1733734231557,-198.15,7.397e-05,2]
[344715802,1733734231567,-322.35119471,8.219e-05,2]
[344715803,1733734231578,-292.98431286,8.219e-05,2]
[344715804,1733734231588,-8.01568614,8.219e-05,2]
[344715805,1733734231882,-254.4,8.219e-05,2]
[344715806,1733734231893,-1816.41431386,8.219e-05,2]
[344715807,1733734231902,-1000.0,8.584e-05,2]
[344715808,1733734231912,-640.09,8.85e-05,2]
[344715809,1733734231922,-150.0,8.877e-05,2]
[344715810,1733734231931,-300.0,8.913e-05,2]
[344715811,1733734231941,-1617.64800914,8.914e-05,2]
[344715812,1733734231952,-903.46311677,8.914e-05,2]
[344715813,1733734231964,-367.2993188,8.914e-05,2]
[344715814,1733734231975,-586.85405963,8.914e-05,2]
[344715815,1733734231986,-2804.79549566,8.914e-05,2]
[344715816,1733734231995,-250.0,8.958e-05,2]
[344715817,1733734232006,-150.0,8.969e-05,2]
[344715818,1733734232015,-999.99,8.976e-05,2]
[344715819,1733734232024,-150.0,8.976e-05,2]
[344715820,1733734232034,-23900.0,8.977e-05,2]
[344715821,1733734232043,-3076.53,8.977e-05,2]
[344715822,1733734232052,-6738.2,8.977e-05,2]
[344715823,1733734232061,-233.3,9.021e-05,2]
[344715825,1733734232070,-250.0,9.023e-05,2]
[344715827,1733734232080,-150.0,9.04e-05,2]
[344715829,1733734232090,-364.25,9.118e-05,2]
[344715832,1733734232099,-150.86,9.158e-05,2]
[344715835,1733734232108,-322.888,9.5e-05,2]
[344715839,1733734232117,-200.0,9.569e-05,2]
[344715841,1733734232126,-1000.0,9.657e-05,2]
[344715844,1733734232135,-5574.6098,9.699e-05,2]
[344715846,1733734232146,-1000.0,9.699e-05,2]
[344715848,1733734232155,-6820.7345,9.7e-05,2]
[344715850,1733734232164,-398.73,9.7e-05,2]
[344715852,1733734232175,-420.0,9.804e-05,2]
[344715854,1733734232184,-382.7,9.863e-05,2]
[344715856,1733734232193,-500.0,9.863e-05,2]
[344715858,1733734232203,-223.17657125,9.863e-05,2]
[344715860,1733734232212,-500.0,9.863e-05,2]
[344715862,1733734232221,-500.0,9.863e-05,2]
[344715864,1733734232230,-500.0,9.863e-05,2]
[344715866,1733734232240,-500.0,9.863e-05,2]
[344715868,1733734232250,-500.0,9.863e-05,2]
[344715870,1733734232259,-500.0,9.863e-05,2]
[344715872,1733734232268,-500.0,9.863e-05,2]
[344715874,1733734232276,-500.0,9.863e-05,2]
[344715876,1733734232285,-500.0,9.863e-05,2]
[344715878,1733734232295,-383.86513756,9.863e-05,2]
[344715880,1733734232304,-500.0,9.863e-05,2]
[344715882,1733734232313,-500.0,9.863e-05,2]
[344715884,1733734232323,-565.73018433,9.863e-05,2]
[344715886,1733734232331,-500.0,9.863e-05,2]
[344715888,1733734232341,-154.16065193,9.863e-05,2]
[344715890,1733734232350,-500.0,9.863e-05,2]
[344715892,1733734232359,-500.0,9.863e-05,2]
[344715894,1733734232368,-500.0,9.863e-05,2]
[344715896,1733734232377,-500.0,9.863e-05,2]
[344715898,1733734232386,-500.0,9.863e-05,2]
[344715900,1733734232395,-500.0,9.863e-05,2]
[344715902,1733734232405,-330.46,9.863e-05,2]
[344715904,1733734232414,-500.0,9.863e-05,2]
[344715906,1733734232425,-500.0,9.863e-05,2]
[344715908,1733734232435,-500.0,9.863e-05,2]
[344715910,1733734232444,-500.0,9.863e-05,2]
[344715912,1733734232453,-500.0,9.863e-05,2]
[344715914,1733734232463,-500.0,9.863e-05,2]
[344715916,1733734232473,-287.97,9.863e-05,2]
[344715918,1733734232482,-500.0,9.863e-05,2]
[344715920,1733734232491,-500.0,9.863e-05,2]
[344715922,1733734232500,-500.0,9.863e-05,2]
[344715924,1733734232509,-500.0,9.863e-05,2]
[344715926,1733734232518,-500.0,9.863e-05,2]
[344715928,1733734232527,-500.0,9.863e-05,2]
[344715930,1733734232536,-500.0,9.863e-05,2]
[344715953,1733734232762,-500.0,9.863e-05,2]
[344715955,1733734232772,-500.0,9.863e-05,2]
[344715957,1733734232781,-500.0,9.863e-05,2]
[344715959,1733734232791,-500.0,9.863e-05,2]
[344715961,1733734232800,-500.0,9.863e-05,2]
[344715963,1733734232810,-500.0,9.863e-05,2]
[344715965,1733734232819,-500.0,9.863e-05,2]
[344715966,1733734232830,-500.0,9.863e-05,2]
[344715967,1733734232839,-500.0,9.863e-05,2]
[344715968,1733734232849,-500.0,9.863e-05,2]
[344715969,1733734232859,-500.0,9.863e-05,2]
[344715970,1733734232868,-500.0,9.863e-05,2]
[344715971,1733734232878,-500.0,9.863e-05,2]
[344715972,1733734232887,-500.0,9.863e-05,2]
[344715973,1733734232897,-500.0,9.863e-05,2]
[344715974,1733734232906,-500.0,9.863e-05,2]
[344715975,1733734232916,-500.0,9.863e-05,2]
[344715976,1733734232929,-500.0,9.863e-05,2]
[344715977,1733734232940,-500.0,9.863e-05,2]
[344715978,1733734232949,-500.0,9.863e-05,2]
[344715979,1733734232958,-500.0,9.863e-05,2]
[344715980,1733734232967,-548.94,9.863e-05,2]
[344715981,1733734232977,-500.0,9.863e-05,2]
[344715982,1733734232986,-500.0,9.863e-05,2]
[344715983,1733734232995,-500.0,9.863e-05,2]
[344715984,1733734233004,-500.0,9.863e-05,2]
[344715985,1733734233013,-500.0,9.863e-05,2]
[344715986,1733734233023,-500.0,9.863e-05,2]
[344715987,1733734233032,-500.0,9.863e-05,2]
[344715988,1733734233041,-500.0,9.863e-05,2]
[344715989,1733734233051,-500.0,9.863e-05,2]
[344715990,1733734233061,-500.0,9.863e-05,2]
[344715991,1733734233070,-500.0,9.863e-05,2]
[344715992,1733734233080,-500.0,9.863e-05,2]
[344715993,1733734233090,-500.0,9.863e-05,2]
[344715994,1733734233099,-500.0,9.863e-05,2]
[344715995,1733734233109,-500.0,9.863e-05,2]
[344715996,1733734233119,-500.0,9.863e-05,2]
[344715997,1733734233129,-500.0,9.863e-05,2]
[344715998,1733734233138,-500.0,9.863e-05,2]
[344715999,1733734233148,-500.0,9.863e-05,2]
[344716000,1733734233157,-500.0,9.863e-05,2]
[344716001,1733734233167,-500.0,9.863e-05,2]
[344716002,1733734233178,-500.0,9.863e-05,2]
[344716003,1733734233187,-500.0,9.863e-05,2]
[344716004,1733734233197,-500.0,9.863e-05,2]
[344716005,1733734233207,-500.0,9.863e-05,2]
[344716006,1733734233217,-500.0,9.863e-05,2]
[344716007,1733734233227,-500.0,9.863e-05,2]
[344716008,1733734233237,-500.0,9.863e-05,2]
[344716009,1733734233247,-500.0,9.863e-05,2]
[344716010,1733734233257,-500.0,9.863e-05,2]
[344716011,1733734233267,-500.0,9.863e-05,2]
[344716012,1733734233276,-500.0,9.863e-05,2]
[344716013,1733734233286,-500.0,9.863e-05,2]
[344716014,1733734233295,-500.0,9.863e-05,2]
[344716015,1733734233304,-500.0,9.863e-05,2]
[344716016,1733734233314,-500.0,9.863e-05,2]
[344716017,1733734233323,-500.0,9.863e-05,2]
[344716018,1733734233332,-284.66,9.863e-05,2]
[344716019,1733734233342,-599.54489556,9.863e-05,2]
[344716020,1733734233351,-500.0,9.863e-05,2]
[344716021,1733734233360,-500.0,9.863e-05,2]
[344716022,1733734233370,-500.0,9.863e-05,2]
[344716023,1733734233379,-500.0,9.863e-05,2]
[344716024,1733734233389,-500.0,9.863e-05,2]
[344716025,1733734233398,-500.0,9.863e-05,2]
[344716026,1733734233408,-403.95068035,9.863e-05,2]
[344716027,1733734233462,-96.04931965,9.863e-05,2]
[344716028,1733734233471,-500.0,9.863e-05,2]
[344716029,1733734233481,-573.38,9.863e-05,2]
[344716030,1733734233491,-500.0,9.863e-05,2]
[344716031,1733734233501,-500.0,9.863e-05,2]
[344716032,1733734233510,-500.0,9.863e-05,2]
[344716033,1733734233519,-500.0,9.863e-05,2]
[344716034,1733734233529,-500.0,9.863e-05,2]
[344716035,1733734233538,-500.0,9.863e-05,2]
[344716036,1733734233548,-500.0,9.863e-05,2]
[344716037,1733734233558,-500.0,9.863e-05,2]
[344716038,1733734233568,-500.0,9.863e-05,2]
[344716039,1733734233578,-500.0,9.863e-05,2]
[344716040,1733734233587,-210.06387272,9.863e-05,2]
[344716041,1733734233606,-289.93612728,9.863e-05,2]
[344716042,1733734233616,-500.0,9.863e-05,2]
[344716043,1733734233626,-500.0,9.863e-05,2]
[344716044,1733734233635,-500.0,9.863e-05,2]
[344716045,1733734233644,-637.57,9.863e-05,2]
[344716046,1733734233654,-500.0,9.863e-05,2]
[344716047,1733734233665,-500.0,9.863e-05,2]
[344716048,1733734233677,-500.0,9.863e-05,2]
[344716049,1733734233687,-500.0,9.863e-05,2]
[344716050,1733734233696,-500.0,9.863e-05,2]
[344716051,1733734233706,-500.0,9.863e-05,2]
[344716052,1733734233716,-500.0,9.863e-05,2]
[344716053,1733734233726,-500.0,9.863e-05,2]
[344716054,1733734233735,-500.0,9.863e-05,2]
[344716055,1733734233745,-500.0,9.863e-05,2]
[344716056,1733734233754,-500.0,9.863e-05,2]
[344716057,1733734233764,-500.0,9.863e-05,2]
[344716058,1733734233774,-500.0,9.863e-05,2]
[344716059,1733734233784,-500.0,9.863e-05,2]
[344716060,1733734233793,-500.0,9.863e-05,2]
[344716061,1733734233803,-500.0,9.863e-05,2]
[344716062,1733734233812,-500.0,9.863e-05,2]
[344716063,1733734233822,-500.0,9.863e-05,2]
[344716064,1733734233831,-500.0,9.863e-05,2]
[344716065,1733734233842,-500.0,9.863e-05,2]
[344716066,1733734233851,-500.0,9.863e-05,2]
[344716067,1733734233860,-500.0,9.863e-05,2]
[344716068,1733734233870,-500.0,9.863e-05,2]
[344716069,1733734233879,-500.0,9.863e-05,2]
[344716070,1733734233889,-500.0,9.863e-05,2]
[344716071,1733734233898,-500.0,9.863e-05,2]
[344716072,1733734233908,-500.0,9.863e-05,2]
[344716073,1733734233917,-500.0,9.863e-05,2]
[344716074,1733734233933,-500.0,9.863e-05,2]
[344716075,1733734233943,-500.0,9.863e-05,2]
[344716076,1733734233952,-500.0,9.863e-05,2]
[344716077,1733734233962,-500.0,9.863e-05,2]
[344716078,1733734233972,-500.0,9.863e-05,2]
[344716079,1733734233980,-500.0,9.863e-05,2]
[344716080,1733734233990,-500.0,9.863e-05,2]
[344716081,1733734233999,-500.0,9.863e-05,2]
[344716082,1733734234009,-500.0,9.863e-05,2]
[344716083,1733734234018,-500.0,9.863e-05,2]
[344716084,1733734234028,-500.0,9.863e-05,2]
[344716085,1733734234039,-500.0,9.863e-05,2]
[344716086,1733734234049,-500.0,9.863e-05,2]
[344716087,1733734234058,-500.0,9.863e-05,2]
[344716088,1733734234067,-500.0,9.863e-05,2]
[344716089,1733734234077,-500.0,9.863e-05,2]
[344716090,1733734234086,-500.0,9.863e-05,2]
[344716091,1733734234095,-500.0,9.863e-05,2]
[344716092,1733734234104,-500.0,9.863e-05,2]
[344716093,1733734234115,-500.0,9.863e-05,2]
[344716094,1733734234124,-500.0,9.863e-05,2]
[344716095,1733734234134,-500.0,9.863e-05,2]
[344716096,1733734234144,-500.0,9.863e-05,2]
[344716097,1733734234154,-500.0,9.863e-05,2]
[344716098,1733734234165,-500.0,9.863e-05,2]
[344716099,1733734234177,-500.0,9.863e-05,2]
[344716100,1733734234187,-500.0,9.863e-05,2]
[344716101,1733734234197,-500.0,9.863e-05,2]
[344716102,1733734234206,-500.0,9.863e-05,2]
[344716103,1733734234216,-500.0,9.863e-05,2]
[344716104,1733734234226,-500.0,9.863e-05,2]
[344716105,1733734234235,-500.0,9.863e-05,2]
[344716106,1733734234244,-500.0,9.863e-05,2]
[344716107,1733734234254,-500.0,9.863e-05,2]
[344716108,1733734234263,-500.0,9.863e-05,2]
[344716109,1733734234273,-500.0,9.863e-05,2]
[344716110,1733734234282,-500.0,9.863e-05,2]
[344716111,1733734234291,-500.0,9.863e-05,2]
[344716112,1733734234301,-500.0,9.863e-05,2]
[344716113,1733734234310,-500.0,9.863e-05,2]
[344716114,1733734234319,-611.06,9.863e-05,2]
[344716115,1733734234329,-500.0,9.863e-05,2]
[344716116,1733734234339,-500.0,9.863e-05,2]
[344716117,1733734234348,-500.0,9.863e-05,2]
[344716118,1733734234358,-500.0,9.863e-05,2]
[344716119,1733734234367,-500.0,9.863e-05,2]
[344716120,1733734234378,-500.0,9.863e-05,2]
[344716121,1733734234387,-500.0,9.863e-05,2]
[344716122,1733734234397,-500.0,9.863e-05,2]
[344716123,1733734234407,-500.0,9.863e-05,2]
[344716124,1733734234418,-500.0,9.863e-05,2]
[344716125,1733734234430,-500.0,9.863e-05,2]
[344716126,1733734234440,-500.0,9.863e-05,2]
[344716127,1733734234450,-500.0,9.863e-05,2]
[344716128,1733734234460,-500.0,9.863e-05,2]
[344716129,1733734234469,-500.0,9.863e-05,2]
[344716130,1733734234480,-500.0,9.863e-05,2]
[344716131,1733734234490,-500.0,9.863e-05,2]
[344716132,1733734234499,-500.0,9.863e-05,2]
[344716133,1733734234508,-500.0,9.863e-05,2]
[344716134,1733734234517,-500.0,9.863e-05,2]
[344716135,1733734234526,-500.0,9.863e-05,2]
[344716136,1733734234535,-500.0,9.863e-05,2]
[344716137,1733734234545,-198.44,9.863e-05,2]
[344716138,1733734234554,-500.0,9.863e-05,2]
[344716139,1733734234564,-500.0,9.863e-05,2]
[344716140,1733734234574,-500.0,9.863e-05,2]
[344716141,1733734234583,-500.0,9.863e-05,2]
[344716142,1733734234593,-352.21448174,9.863e-05,2]
[344716144,1733734237544,-294.79,8.402e-05,2]
[344716145,1733734237579,-320.54550756,8.402e-05,2]
[344716146,1733734237589,-147.78551826,9.863e-05,2]
[344716147,1733734237599,-500.0,9.863e-05,2]
[344716148,1733734237608,-500.0,9.863e-05,2]
[344716149,1733734237617,-500.0,9.863e-05,2]
[344716150,1733734237627,-500.0,9.863e-05,2]
[344716151,1733734237636,-500.0,9.863e-05,2]
[344716152,1733734237645,-500.0,9.863e-05,2]
[344716153,1733734237655,-500.0,9.863e-05,2]
[344716154,1733734237664,-500.0,9.863e-05,2]
[344716155,1733734237674,-500.0,9.863e-05,2]
[344716156,1733734237686,-500.0,9.863e-05,2]
[344716157,1733734237695,-157.85560856,9.863e-05,2]
[344716158,1733734237706,-342.14439144,9.863e-05,2]
[344716159,1733734237716,-283.48060856,9.863e-05,2]
[344716160,1733734237762,-86.4,9.863e-05,2]
[344716161,1733734237781,-130.11939144,9.863e-05,2]
[344716162,1733734237790,-500.0,9.863e-05,2]
[344716163,1733734237799,-500.0,9.863e-05,2]
[344716164,1733734237808,-496.03,9.863e-05,2]
[344716165,1733734237817,-500.0,9.863e-05,2]
[344716166,1733734237826,-500.0,9.863e-05,2]
[344716167,1733734237836,-500.0,9.863e-05,2]
[344716168,1733734237845,-500.0,9.863e-05,2]
[344716169,1733734237854,-500.0,9.863e-05,2]
[344716170,1733734237864,-260.13257723,9.863e-05,2]
[344716172,1733734237876,-239.86742277,9.863e-05,2]
[344716174,1733734237885,-500.0,9.863e-05,2]
[344716175,1733734237894,-500.0,9.863e-05,2]
[344716176,1733734237903,-500.0,9.863e-05,2]
[344716177,1733734237912,-254.53255254,9.863e-05,2]
[344716178,1733734237923,-245.46744746,9.863e-05,2]
[344716180,1733734237934,-500.0,9.863e-05,2]
[344716181,1733734237947,-500.0,9.863e-05,2]
[344716182,1733734237956,-500.0,9.863e-05,2]
[344716183,1733734237966,-500.0,9.863e-05,2]
[344716184,1733734237975,-500.0,9.863e-05,2]
[344716186,1733734237983,-1.21353826,9.863e-05,2]
[344716188,1733734237996,-498.78646174,9.863e-05,2]
[344716189,1733734238005,-131.20884878,9.863e-05,2]
[344716191,1733734238038,-368.79115122,9.863e-05,2]
[344716192,1733734238048,-500.0,9.863e-05,2]
[344716193,1733734238057,-500.0,9.863e-05,2]
[344716194,1733734238066,-236.92,9.863e-05,2]
[344716195,1733734238075,-329.82884878,9.863e-05,2]
[344716196,1733734238086,-170.17115122,9.863e-05,2]
[344716197,1733734238095,-500.0,9.863e-05,2]
[344716198,1733734238104,-500.0,9.863e-05,2]
[344716199,1733734238113,-26.97884878,9.863e-05,2]
[344716216,1733734239555,-454.692,9.863e-05,2]
[344716217,1733734239613,-18.32915122,9.863e-05,2]
[344716218,1733734239623,-500.0,9.863e-05,2]
[344716219,1733734239632,-186.27084878,9.863e-05,2]
[344716220,1733734239643,-313.72915122,9.863e-05,2]
[344716221,1733734239653,-266.49312318,9.863e-05,2]
[344716222,1733734239670,-233.50687682,9.863e-05,2]
[344716223,1733734239684,-500.0,9.863e-05,2]
[344716224,1733734239697,-500.0,9.863e-05,2]
[344716225,1733734239707,-500.0,9.863e-05,2]
[344716226,1733734239716,-580.87,9.863e-05,2]
[344716227,1733734239725,-500.0,9.863e-05,2]
[344716228,1733734239735,-500.0,9.863e-05,2]
[344716229,1733734239744,-500.0,9.863e-05,2]
[344716230,1733734239753,-500.0,9.863e-05,2]
[344716231,1733734239763,-500.0,9.863e-05,2]
[344716232,1733734239772,-144.84687319,9.863e-05,2]
[344716233,1733734239791,-355.15312681,9.863e-05,2]
[344716234,1733734239800,-159.09819506,9.863e-05,2]
[344716235,1733734239811,-340.90180494,9.863e-05,2]
[344716236,1733734239821,-500.0,9.863e-05,2]
[344716237,1733734239831,-500.0,9.863e-05,2]
[344716238,1733734239841,-633.25,9.863e-05,2]
[344716239,1733734239851,-500.0,9.863e-05,2]
[344716240,1733734239860,-136.62324506,9.863e-05,2]
[344716241,1733734239871,-363.37675494,9.863e-05,2]
[344716242,1733734239880,-500.0,9.863e-05,2]
[344716243,1733734239890,-500.0,9.863e-05,2]
[344716244,1733734239899,-500.0,9.863e-05,2]
[344716245,1733734239908,-500.0,9.863e-05,2]
[344716246,1733734239917,-193.10725563,9.863e-05,2]
[344716247,1733734239929,-500.0,9.863e-05,2]
[344716248,1733734239939,-500.0,9.863e-05,2]
[344716249,1733734239952,-500.0,9.863e-05,2]
[344716250,1733734239961,-500.0,9.863e-05,2]
[344716251,1733734239971,-500.0,9.863e-05,2]
[344716252,1733734239980,-500.0,9.863e-05,2]
[344716253,1733734239990,-500.0,9.863e-05,2]
[344716254,1733734239999,-304.27987753,9.863e-05,2]
[344716255,1733734240008,-500.0,9.863e-05,2]
[344716256,1733734240017,-500.0,9.863e-05,2]
[344716257,1733734240027,-500.0,9.863e-05,2]
[344716258,1733734240036,-500.0,9.863e-05,2]
[344716259,1733734240045,-500.0,9.863e-05,2]
[344716260,1733734240055,-500.0,9.863e-05,2]
[344716261,1733734240064,-500.0,9.863e-05,2]
[344716262,1733734240073,-500.0,9.863e-05,2]
[344716263,1733734240083,-500.0,9.863e-05,2]
[344716264,1733734240092,-500.0,9.863e-05,2]
[344716265,1733734240101,-597.94,9.863e-05,2]
[344716266,1733734240110,-171.39288612,9.863e-05,2]
[344716267,1733734240119,-500.0,9.863e-05,2]
[344716268,1733734240129,-500.0,9.863e-05,2]
[344716269,1733734240138,-500.0,9.863e-05,2]
[344716270,1733734240147,-500.0,9.863e-05,2]
[344716271,1733734240157,-500.0,9.863e-05,2]
[344716272,1733734240166,-500.0,9.863e-05,2]
[344716273,1733734240177,-500.0,9.863e-05,2]
[344716274,1733734240187,-500.0,9.863e-05,2]
[344716275,1733734240197,-500.0,9.863e-05,2]
[344716276,1733734240206,-500.0,9.863e-05,2]
[344716277,1733734240215,-500.0,9.863e-05,2]
[344716278,1733734240225,-557.48,9.863e-05,2]
[344716279,1733734240234,-500.0,9.863e-05,2]
[344716280,1733734240244,-500.0,9.863e-05,2]
[344716281,1733734240253,-500.0,9.863e-05,2]
[344716282,1733734240262,-500.0,9.863e-05,2]
[344716283,1733734240272,-500.0,9.863e-05,2]
[344716284,1733734240281,-500.0,9.863e-05,2]
[344716285,1733734240291,-500.0,9.863e-05,2]
[344716286,1733734240300,-459.41,9.863e-05,2]
[344716287,1733734240309,-500.0,9.863e-05,2]
[344716288,1733734240319,-500.0,9.863e-05,2]
[344716289,1733734240328,-418.84350321,9.863e-05,2]
[344716290,1733734240338,-500.0,9.863e-05,2]
[344716291,1733734240347,-1115.34,9.863e-05,2]